fUST/lending_fUST_20250124
["ID","MTS","AMOUNT","RATE_DAILY","PERIOD"]
[350210060,1737693045737,-152.0,0.00022612,2]
[350210062,1737693045746,-152.0,0.00022612,2]
[350210064,1737693045756,-152.0,0.00022612,2]
[350210066,1737693045765,-271.0,0.00022612,2]
[350210069,1737693045774,-159.58041,0.00022619,14]
[350210071,1737693045783,-165.444228,0.00022619,14]
[350210073,1737693045793,-1000.0,0.0002263,30]
[350210074,1737693045802,-1000.0,0.00022658,30]
[350210076,1737693045811,-250.038708,0.00022659,3]
[350210078,1737693045820,-500.0,0.00022678,2]
[350210080,1737693045829,-1000.0,0.00022685,30]
[350210082,1737693045840,-500.0,0.00022712,2]
[350210085,1737693045851,-500.0,0.00022712,2]
[350210086,1737693045860,-500.0,0.00022712,2]
[350210088,1737693045869,-1000.0,0.00022712,30]
[350210090,1737693045878,-1000.0,0.00022722,2]
[350210092,1737693045889,-1000.0,0.00022729,2]
[350210094,1737693045898,-1000.0,0.0002273,2]
[350210096,1737693045907,-1000.0,0.0002274,30]
[350210099,1737693045920,-150.03,0.0002274,3]
[350210101,1737693045930,-150.49684111,0.0002274,2]
[350210103,1737693045939,-500.0,0.0002274,3]
[350210105,1737693045948,-299.97,0.0002274,3]
[350210107,1737693045957,-1000.0,0.00022766,2]
[350210109,1737693045966,-2000.0,0.00022767,30]
[350210111,1737693045975,-1000.0,0.00022781,2]
[350210113,1737693045984,-310.7697496,0.00022795,2]
[350210115,1737693045994,-2000.0,0.00022795,30]
[350210117,1737693046003,-250.038708,0.00022797,3]
[350210119,1737693046012,-1000.0,0.00022805,2]
[350210121,1737693046021,-158.04184592,0.00022809,2]
[350210123,1737693046030,-2000.0,0.00022822,30]
[350210125,1737693046040,-177.14444,0.00022831,2]
[350210127,1737693046050,-2000.0,0.00022849,30]
[350210129,1737693046059,-1017.81350562,0.00022853,2]
[350210131,1737693046068,-1000.0,0.00022868,2]
[350210133,1737693046077,-2000.0,0.00022877,30]
[350210135,1737693046086,-1000.0,0.00022885,2]
[350210137,1737693046095,-2000.0,0.00022904,30]
[350210139,1737693046104,-2000.0,0.00022932,30]
[350210141,1737693046113,-250.038708,0.00022934,3]
[350210143,1737693046122,-1000.0,0.00022935,2]
[350210145,1737693046131,-1000.0,0.00022956,2]
[350210147,1737693046140,-2000.0,0.00022959,30]
[350210149,1737693046149,-2000.0,0.00022986,30]
[350210151,1737693046158,-1797.67534049,0.00023,10]
[350210153,1737693046167,-33608.47381259,0.00023,2]
[350210155,1737693046178,-595.57154562,0.00023,2]
[350210157,1737693046188,-6088.404514,0.00023,30]
[350210160,1737693046210,-4032.31907277,0.00023,30]
[350210163,1737693046221,-839.99999992,0.00023,30]
[350210165,1737693046233,-3204.27641331,0.00023,30]
[350210167,1737693046242,-2473.98981028,0.00023,30]
[350210173,1737693046286,-493.28256153,0.00023,30]
[350210175,1737693046297,-769.42311904,0.00023,30]
[350210344,1737693702817,163.284012,0.00013973,2]
[350210386,1737694232031,-177.14444,0.00017808,2]
[350210388,1737694232041,-355.85842164,0.000189,2]
[350210390,1737694232051,-173.76154124,0.00019078,2]
[350210392,1737694232060,-300.0,0.00019177,2]
[350210394,1737694232069,-376.37181323,0.00019178,2]
[350211150,1737694240125,-130.87897372,0.00019178,2]
[350211152,1737694240135,-501.98364643,0.00019178,2]
[350211154,1737694240144,-587.3634819,0.00019178,2]
[350211156,1737694240153,-504.03476025,0.00019178,2]
[350211158,1737694240162,-603.60531065,0.00019178,2]
[350211160,1737694240172,-507.22181007,0.00019178,2]
[350211162,1737694240182,-498.26494124,0.00019178,2]
[350211164,1737694240191,-508.55996427,0.00019178,2]
[350211166,1737694240200,-507.80513628,0.00019178,2]
[350211168,1737694240210,-506.47407666,0.00019178,2]
[350211170,1737694240220,-502.50884702,0.00019178,2]
[350211172,1737694240231,-503.69663311,0.00019178,2]
[350211174,1737694240240,-500.0,0.00019178,2]
[350211176,1737694240249,-500.0,0.00019178,2]
[350211178,1737694240259,-500.0,0.00019178,2]
[350211180,1737694240268,-508.45290686,0.00019178,7]
[350211182,1737694240278,-506.06385706,0.00019178,2]
[350211184,1737694240288,-500.0,0.00019178,2]
[350211186,1737694240297,-593.94287682,0.00019178,2]
[350211188,1737694240308,-505.66015781,0.00019178,2]
[350211190,1737694240318,-502.1924253,0.00019178,2]
[350211192,1737694240327,-502.52239759,0.00019178,2]
[350211194,1737694240337,-500.0,0.00019178,2]
[350211196,1737694240346,-500.39094462,0.00019178,2]
[350211198,1737694240355,-270.99704747,0.00019178,2]
[350211200,1737694240365,-500.0,0.00019178,2]
[350211202,1737694240374,-501.32431168,0.00019178,2]
[350211204,1737694240383,-500.76178286,0.00019178,2]
[350211206,1737694240392,-646.73694364,0.00019178,2]
[350211208,1737694240403,-300.81634883,0.00019178,2]
[350211210,1737694240412,-501.44986785,0.00019178,2]
[350211212,1737694240422,-505.08386143,0.00019178,2]
[350211214,1737694240431,-502.32521577,0.00019178,2]
[350211216,1737694240441,-501.51132983,0.00019178,2]
[350211218,1737694240450,-500.79228191,0.00019178,2]
[350211220,1737694240459,-501.20705369,0.00019178,2]
[350211222,1737694240468,-502.86398591,0.00019178,2]
[350211224,1737694240478,-501.6052603,0.00019178,2]
[350211226,1737694240487,-503.44935204,0.00019178,2]
[350211228,1737694240496,-501.09403409,0.00019178,2]
[350211230,1737694240506,-500.99448706,0.00019178,2]
[350211232,1737694240515,-501.9631893,0.00019178,2]
[350211234,1737694240524,-352.68937582,0.00019178,2]
[350211236,1737694240533,-172.2700983,0.00019178,2]
[350211238,1737694240543,-501.24038585,0.00019178,2]
[350211240,1737694240552,-500.0,0.00019178,2]
[350211242,1737694240562,-505.93254395,0.00019178,2]
[350211244,1737694240571,-503.915964,0.00019178,2]
[350211246,1737694240580,-501.75674238,0.00019178,2]
[350211248,1737694240591,-500.0,0.00019178,2]
[350211250,1737694240601,-500.0,0.00019178,2]
[350211252,1737694240610,-348.99521368,0.00019178,2]
[350211254,1737694240619,-526.41355385,0.00019178,2]
[350211257,1737694240628,-502.63869503,0.00019178,2]
[350211259,1737694240637,-500.97521479,0.00019178,2]
[350211261,1737694240647,-500.0,0.00019178,2]
[350211263,1737694240656,-500.0,0.00019178,2]
[350211265,1737694240665,-501.98350979,0.00019178,2]
[350211266,1737694240674,-500.0,0.00019178,2]
[350211268,1737694240684,-500.0,0.00019178,2]
[350211270,1737694240695,-500.0,0.00019178,2]
[350211273,1737694240704,-500.0,0.00019178,2]
[350211275,1737694240713,-184.23352796,0.00019178,2]
[350211277,1737694240722,-500.0,0.00019178,2]
[350211279,1737694240732,-500.0,0.00019178,2]
[350211281,1737694240741,-198.34955714,0.00019178,2]
[350211283,1737694240751,-500.0,0.00019178,2]
[350211285,1737694240760,-500.0,0.00019178,2]
[350211287,1737694240769,-500.0,0.00019178,2]
[350211289,1737694240778,-501.8372294,0.00019178,2]
[350211291,1737694240788,-439.69524759,0.00019178,2]
[350211293,1737694240797,-502.37690999,0.00019178,2]
[350211295,1737694240806,-500.0,0.00019178,2]
[350211297,1737694240816,-500.0,0.00019178,2]
[350211299,1737694240825,-500.0,0.00019178,2]
[350211301,1737694240841,-500.0,0.00019178,2]
[350211303,1737694240851,-501.25914013,0.00019178,2]
[350211305,1737694240861,-503.46781753,0.00019178,2]
[350211307,1737694240870,-500.79778548,0.00019178,2]
[350211309,1737694240880,-502.45418192,0.00019178,2]
[350211311,1737694240889,-230.67687148,0.00019178,2]
[350211313,1737694240899,-183.50536026,0.00019178,2]
[350211315,1737694240908,-500.0,0.00019178,2]
[350211317,1737694240918,-500.0,0.00019178,2]
[350211319,1737694240927,-503.66986313,0.00019178,2]
[350211321,1737694240936,-500.0,0.00019178,2]
[350211323,1737694240946,-432.72058721,0.00019178,2]
[350211325,1737694240955,-500.0,0.00019178,2]
[350211327,1737694240966,-500.0,0.00019178,2]
[350211329,1737694240976,-200.0,0.00019178,2]
[350211331,1737694240985,-548.88739417,0.00019178,2]
[350211333,1737694240995,-500.0,0.00019178,2]
[350211335,1737694241004,-500.0,0.00019178,2]
[350211337,1737694241013,-511.7074814,0.00019178,2]
[350211339,1737694241022,-500.0,0.00019178,2]
[350211341,1737694241031,-422.30215407,0.00019178,2]
[350211343,1737694241040,-500.0,0.00019178,2]
[350211345,1737694241050,-500.0,0.00019178,2]
[350211347,1737694241059,-503.46585821,0.00019178,2]
[350211349,1737694241069,-500.0,0.00019178,2]
[350211351,1737694241079,-508.72189451,0.00019178,2]
[350211353,1737694241088,-500.0,0.00019178,2]
[350211355,1737694241099,-500.0,0.00019178,2]
[350211358,1737694241108,-500.0,0.00019178,2]
[350211360,1737694241118,-500.0,0.00019178,2]
[350211362,1737694241127,-500.0,0.00019178,2]
[350211364,1737694241137,-501.5627687,0.00019178,2]
[350211366,1737694241146,-500.0,0.00019178,2]
[350211368,1737694241155,-500.0,0.00019178,2]
[350211370,1737694241165,-500.0,0.00019178,2]
[350211372,1737694241174,-500.0,0.00019178,2]
[350211374,1737694241183,-501.81342801,0.00019178,2]
[350211376,1737694241193,-505.32425953,0.00019178,2]
[350211378,1737694241203,-457.33753003,0.00019178,2]
[350211380,1737694241213,-500.0,0.00019178,2]
[350211382,1737694241223,-500.0,0.00019178,2]
[350211384,1737694241237,-500.0,0.00019178,2]
[350211386,1737694241246,-503.27305178,0.00019178,2]
[350211388,1737694241256,-500.0,0.00019178,2]
[350211390,1737694241266,-500.0,0.00019178,2]
[350211392,1737694241276,-500.0,0.00019178,2]
[350211394,1737694241285,-238.27982159,0.00019178,2]
[350211396,1737694241294,-500.0,0.00019178,2]
[350211398,1737694241304,-501.76726984,0.00019178,2]
[350211400,1737694241314,-500.0,0.00019178,2]
[350211402,1737694241323,-500.0,0.00019178,2]
[350211404,1737694241332,-501.83709834,0.00019178,2]
[350211406,1737694241342,-500.0,0.00019178,2]
[350211409,1737694241351,-500.0,0.00019178,2]
[350211411,1737694241360,-500.98865152,0.00019178,2]
[350211412,1737694241369,-500.0,0.00019178,2]
[350211415,1737694241379,-500.0,0.00019178,2]
[350211417,1737694241388,-500.0,0.00019178,2]
[350211418,1737694241403,-500.0,0.00019178,2]
[350211420,1737694241413,-518.41802736,0.00019178,2]
[350211422,1737694241423,-500.0,0.00019178,2]
[350211424,1737694241432,-500.0,0.00019178,2]
[350211426,1737694241441,-501.30893376,0.00019178,2]
[350211428,1737694241451,-501.05594517,0.00019178,2]
[350211429,1737694241461,-500.0,0.00019178,2]
[350211430,1737694241470,-193.74686922,0.00019178,2]
[350211431,1737694241479,-502.05791745,0.00019178,2]
[350211432,1737694241488,-501.75400232,0.00019178,2]
[350211433,1737694241497,-502.19080424,0.00019178,2]
[350211434,1737694241507,-500.0,0.00019178,2]
[350211435,1737694241516,-527.36980822,0.00019178,2]
[350211436,1737694241525,-500.0,0.00019178,2]
[350211437,1737694241534,-500.0,0.00019178,2]
[350211438,1737694241544,-500.0,0.00019178,2]
[350211439,1737694241554,-500.0,0.00019178,2]
[350211440,1737694241563,-550.8,0.00019178,2]
[350211441,1737694241573,-158.98,0.00019178,2]
[350211442,1737694241583,-470.71879559,0.00019222,2]
[350211443,1737694241592,-500.0,0.00019315,3]
[350211444,1737694241601,-327.90810528,0.00019315,3]
[350211446,1737694241610,-202.50220175,0.00019315,3]
[350211447,1737694241619,-500.0,0.00019315,3]
[350211449,1737694241628,-338.35796954,0.00019315,3]
[350211451,1737694241637,-182.26280745,0.00019315,3]
[350211452,1737694241647,-215.3284382,0.000194,2]
[350211453,1737694241656,-173.41135667,0.00019452,3]
[350211455,1737694241665,-212.37,0.00019452,3]
[350211456,1737694241675,-158.021,0.00019596,2]
[350211458,1737694241684,-218.7838695,0.000199,2]
[350211459,1737694241694,-3175.0,0.0002,3]
[350211460,1737694241703,-3173.0,0.0002,3]
[350211461,1737694241713,-3173.0,0.0002,3]
[350211462,1737694241722,-3173.0,0.0002,3]
[350211463,1737694241731,-3173.0,0.0002,3]
[350211464,1737694241741,-3173.0,0.0002,3]
[350211465,1737694241750,-218.7838695,0.00020471,2]
[350211466,1737694241759,-436.0089656,0.00020481,2]
[350211467,1737694241768,-420.0,0.00020899,2]
[350211468,1737694241777,-150.636,0.00021,2]
[350211469,1737694241786,-536.0,0.00021,2]
[350211470,1737694241795,-1259.479,0.00021,2]
[350211471,1737694241804,-150.0,0.00021,2]
[350211472,1737694241813,-395.0,0.00021,2]
[350211473,1737694241823,-218.7838695,0.00021043,2]
[350211474,1737694241838,-726.14,0.000211,2]
[350211475,1737694241847,-173.76154124,0.00021434,2]
[350211476,1737694241856,-218.7838695,0.00021614,3]
[350211477,1737694241865,-163.284012,0.00021661,2]
[350211478,1737694241873,-395.631,0.0002185,2]
[350211479,1737694241883,-412.48969509,0.00021917,2]
[350211480,1737694241892,-500.0,0.00021917,3]
[350211481,1737694241901,-218.7838695,0.00022186,3]
[350211482,1737694241910,-150.05117716,0.00022261,2]
[350211483,1737694241919,-1200.0,0.00022361,2]
[350211484,1737694241929,-321.6332972,0.00022361,2]
[350211485,1737694241997,-178.3667028,0.00022361,2]
[350211486,1737694242007,-151.0,0.00022361,2]
[350211487,1737694242016,-155.0,0.0002274,2]
[350211488,1737694242025,-218.7838695,0.00022757,3]
[350211489,1737694242034,-198.8132935,0.00022769,2]
[350211490,1737694242043,-574.89288924,0.00022776,2]
[350211511,1737694638701,163.284012,0.00013973,2]
[350211512,1737695402454,7230.0,0.00024,120]
[350211521,1737695432219,-177.14444,0.00017808,2]
[350211523,1737695432229,-237.23894776,0.000189,2]
[350211525,1737695432238,-543.86763938,0.00019043,2]
[350211527,1737695432248,-126.5594782,0.00019177,2]
[350211537,1737695432330,-173.4405218,0.00019177,2]
[350211539,1737695432339,-327.1544882,0.00019178,2]
[350211541,1737695432351,-179.61631411,0.00019178,2]
[350211543,1737695432360,-500.0,0.00019178,2]
[350211545,1737695432369,-498.31219008,0.00019178,2]
[350211547,1737695432379,-505.17442694,0.00019178,2]
[350211549,1737695432388,-500.0,0.00019178,2]
[350211551,1737695432397,-513.78033632,0.00019178,2]
[350211553,1737695432407,-197.08290386,0.00019178,2]
[350211555,1737695432416,-535.07933594,0.00019178,2]
[350211557,1737695432426,-500.0,0.00019178,2]
[350211560,1737695432436,-500.0,0.00019178,2]
[350211562,1737695432447,-376.42416754,0.00019178,2]
[350211564,1737695432457,-500.0,0.00019178,2]
[350211566,1737695432466,-500.0,0.00019178,2]
[350211567,1737695432475,-502.4615765,0.00019178,2]
[350211569,1737695432485,-500.97786736,0.00019178,2]
[350211572,1737695432494,-500.0,0.00019178,2]
[350211574,1737695432504,-500.0,0.00019178,2]
[350211575,1737695432513,-500.0,0.00019178,2]
[350211576,1737695432523,-500.0,0.00019178,2]
[350211577,1737695432533,-500.0,0.00019178,2]
[350211578,1737695432542,-500.0,0.00019178,2]
[350211579,1737695432563,-610.05,0.00019178,2]
[350211580,1737695432573,-174.98772755,0.00019178,2]
[350211614,1737695440366,-325.01227245,0.00019178,2]
[350211615,1737695440376,-500.0,0.00019178,2]
[350211616,1737695440385,-490.63151978,0.00019178,2]
[350211617,1737695440395,-500.0,0.00019178,2]
[350211618,1737695440404,-500.0,0.00019178,2]
[350211619,1737695440415,-500.0,0.00019178,2]
[350211620,1737695440427,-500.0,0.00019178,2]
[350211621,1737695440436,-500.0,0.00019178,2]
[350211622,1737695440445,-500.0,0.00019178,2]
[350211623,1737695440454,-500.0,0.00019178,2]
[350211624,1737695440463,-184.63,0.00019315,3]
[350211625,1737695440474,-152.0,0.00019759,2]
[350211626,1737695440486,-357.04997146,0.000199,2]
[350211627,1737695440496,-500.0,0.00019998,3]
[350211628,1737695440505,-500.0,0.00019998,3]
[350211629,1737695440515,-396.7413,0.00019998,3]
[350211630,1737695440527,-502.46572021,0.00019999,3]
[350211631,1737695440538,-501.99813614,0.00019999,3]
[350211632,1737695440548,-500.0,0.00019999,3]
[350211633,1737695440558,-500.0,0.00019999,3]
[350211634,1737695440568,-225.16541054,0.00019999,3]
[350211635,1737695440580,-500.0,0.00019999,3]
[350211636,1737695440591,-501.13221072,0.00019999,3]
[350211637,1737695440601,-500.55893506,0.00019999,3]
[350211638,1737695440610,-502.030207,0.00019999,3]
[350211639,1737695440619,-503.08563319,0.00019999,3]
[350211640,1737695440629,-500.0,0.00019999,3]
[350211641,1737695440638,-496.89027449,0.00019999,3]
[350211642,1737695440647,-501.03453781,0.00019999,3]
[350211643,1737695440659,-503.25212837,0.00019999,3]
[350211644,1737695440669,-504.92461086,0.00019999,3]
[350211645,1737695440678,-647.15196599,0.00019999,3]
[350211646,1737695440687,-1901.0,0.0002,3]
[350211647,1737695440696,-1899.0,0.0002,3]
[350211648,1737695440705,-1899.0,0.0002,3]
[350211649,1737695440716,-1899.0,0.0002,3]
[350211650,1737695440725,-1006.0,0.0002,3]
[350211651,1737695440735,-1004.0,0.0002,3]
[350211652,1737695440748,-1004.0,0.0002,3]
[350211653,1737695440759,-1004.0,0.0002,3]
[350211654,1737695440768,-3927.0,0.0002,2]
[350211655,1737695440777,-500.0,0.00020135,3]
[350211656,1737695440787,-500.0,0.00020136,3]
[350211657,1737695440796,-192.0,0.00020203,2]
[350211658,1737695440805,-500.0,0.00020272,3]
[350211659,1737695440815,-255.8840116,0.00020273,3]
[350211660,1737695440825,-500.0,0.00020409,3]
[350211661,1737695440834,-500.0,0.00020546,3]
[350211662,1737695440843,-500.0,0.00020683,3]
[350211663,1737695440854,-500.0,0.0002082,3]
[350211664,1737695440863,-420.0,0.00020899,2]
[350211665,1737695440873,-500.0,0.00020957,3]
[350211666,1737695440882,-150.0,0.00021,2]
[350211667,1737695440891,-150.309,0.00021,2]
[350211668,1737695440901,-150.0,0.00021,2]
[350211669,1737695440910,-150.0,0.00021,2]
[350211670,1737695440919,-150.0,0.00021,2]
[350211671,1737695440929,-536.0,0.00021,2]
[350211672,1737695440939,-395.0,0.00021,2]
[350211673,1737695440949,-524.67412465,0.00021094,3]
[350211674,1737695440959,-8860.1374905,0.00021161,2]
[350211675,1737695440970,-706.14,0.000213,2]
[350211676,1737695440980,-3927.0,0.000216,4]
[350211677,1737695440989,-388.933,0.0002185,2]
[350211678,1737695440997,-209.39332761,0.000219,3]
[350211679,1737695441008,-20889.10764795,0.00022,3]
[350211680,1737695441018,-209.39332761,0.00022186,3]
[350211681,1737695441027,-209.39332761,0.00022471,3]
[350211682,1737695441037,-150.05117716,0.00022475,2]
[350211683,1737695441046,-505.59226146,0.00022575,3]
[350211684,1737695441055,-500.0,0.00022575,3]
[350211685,1737695441065,-339.0,0.00022575,3]
[350211686,1737695441074,-500.0,0.00022575,3]
[350211687,1737695441085,-500.0,0.00022575,3]
[350211688,1737695441095,-326.652131,0.00022575,3]
[350211689,1737695441104,-500.0,0.00022575,3]
[350211690,1737695441113,-500.0,0.00022575,3]
[350211691,1737695441123,-500.0,0.00022575,3]
[350211692,1737695441132,-440.48887587,0.00022575,3]
[350211693,1737695441141,-500.0,0.00022575,3]
[350211694,1737695441151,-500.0,0.00022575,3]
[350211695,1737695441161,-500.0,0.00022575,3]
[350211696,1737695441170,-500.0,0.00022575,3]
[350211697,1737695441180,-500.0,0.00022575,3]
[350211698,1737695441190,-645.53,0.00022575,3]
[350211699,1737695441199,-512.76,0.00022575,3]
[350211700,1737695441209,-500.0,0.00022575,3]
[350211701,1737695441219,-500.0,0.00022575,3]
[350211702,1737695441228,-500.0,0.00022575,3]
[350211703,1737695441238,-616.09,0.00022575,3]
[350211704,1737695441247,-500.0,0.00022575,3]
[350211705,1737695441257,-500.0,0.00022575,3]
[350211706,1737695441267,-500.0,0.00022575,3]
[350211707,1737695441276,-500.0,0.00022575,3]
[350211708,1737695441286,-500.0,0.00022575,3]
[350211709,1737695441295,-500.0,0.00022575,3]
[350211710,1737695441304,-500.0,0.00022575,3]
[350211711,1737695441314,-500.0,0.00022575,3]
[350211712,1737695441323,-500.0,0.00022575,3]
[350211713,1737695441333,-500.0,0.00022575,3]
[350211714,1737695441342,-500.0,0.00022575,3]
[350211715,1737695441353,-500.0,0.00022575,3]
[350211716,1737695441362,-500.0,0.00022575,3]
[350211717,1737695441371,-500.0,0.00022575,3]
[350211718,1737695441381,-500.0,0.00022623,2]
[350211719,1737695441390,-500.0,0.00022623,2]
[350211720,1737695441402,-531.60435284,0.00022623,2]
[350211721,1737695441411,-500.0,0.00022623,2]
[350211722,1737695441420,-174.69084032,0.00022623,2]
[350211723,1737695441430,-183.55492083,0.00022623,2]
[350211724,1737695441440,-3569.30214048,0.00022624,5]
[350211725,1737695441449,-7919.37129246,0.00022624,5]
[350211726,1737695441462,-3711.32276358,0.00022624,5]
[350211753,1737695443115,-357.04997143,0.00020456,2]
[350211754,1737695443125,-10168.98985769,0.00022624,5]
[350211755,1737695443172,-13559.18613312,0.00022624,5]
[350211756,1737695443182,-6204.16440295,0.0002265,2]
[350211757,1737695443192,-153.12,0.00022712,3]
[350211758,1737695443202,-177.72,0.00022712,3]
[350211759,1737695443211,-606.4,0.00022712,3]
[350211760,1737695443221,-368.33,0.00022712,3]
[350211761,1737695443233,-331.77,0.00022712,3]
[350211762,1737695443243,-473.40930979,0.00022712,3]
[350211763,1737695443252,-370.10003,0.00022712,3]
[350211764,1737695443262,-500.0,0.00022712,3]
[350211765,1737695443271,-209.39332761,0.00022757,3]
[350211766,1737695443281,-163.284012,0.00022759,2]
[350211767,1737695443291,-198.8132935,0.00022769,2]
[350211768,1737695443300,-587.0,0.00022776,2]
[350211769,1737695443310,-431.87,0.00022849,3]
[350211770,1737695443320,-158.021,0.000229,2]
[350211771,1737695443330,-21187.29581061,0.0002299,2]
[350211803,1737695446147,-500.0,0.00019997,3]
[350211805,1737695446157,-124.7826615,0.0002299,2]
[350211810,1737695446188,-15532.61885502,0.0002299,2]
[350211818,1737695446258,-9028.72062448,0.0002299,2]
[350212553,1737695548063,163.30505,0.00013973,2]
[350212554,1737696387952,163.30505,0.00013973,2]
[350212555,1737696405114,-222.12282038,0.00018713,2]
[350212557,1737696445185,2000.0,0.0002,20]
[350212644,1737696632558,-2803.64584522,0.00016,2]
[350212646,1737696632567,-193.104863,0.00018418,2]
[350212648,1737696632577,-275.61717972,0.00018713,2]
[350212650,1737696632586,-405.37847289,0.000188,2]
[350212652,1737696632595,-250.0,0.00018802,2]
[350212655,1737696632604,-165.21058755,0.000189,3]
[350212657,1737696632614,-248.4114724,0.000189,2]
[350212659,1737696632623,-300.0,0.00018997,2]
[350212661,1737696632633,-85.21498613,0.00018998,2]
[350213122,1737696638312,-11252.74387227,0.00018998,2]
[350213124,1737696638322,-1168.39824998,0.00019,2]
[350213126,1737696638331,-234.98057433,0.00019499,3]
[350213128,1737696638342,-500.0,0.00019499,3]
[350213130,1737696638351,-3509.0,0.000195,2]
[350213132,1737696638360,-166.454,0.00019594,2]
[350213134,1737696638370,-500.0,0.00019636,3]
[350213136,1737696638380,-500.0,0.00019773,3]
[350213138,1737696638389,-563.7039507,0.00019895,2]
[350213140,1737696638398,-163.40667111,0.00019895,2]
[350213142,1737696638408,-1200.03,0.00019899,3]
[350213144,1737696638417,-500.0,0.00019899,3]
[350213146,1737696638427,-500.0,0.00019899,3]
[350213148,1737696638437,-500.0,0.00019899,3]
[350213150,1737696638447,-500.0,0.00019899,3]
[350213153,1737696638457,-500.0,0.00019899,3]
[350213154,1737696638466,-500.0,0.00019899,3]
[350213157,1737696638476,-507.39015055,0.00019899,3]
[350213159,1737696638486,-5000.0,0.000199,2]
[350213161,1737696638496,-213.19183094,0.000199,2]
[350213163,1737696638506,-500.0,0.0001991,3]
[350213165,1737696638515,-1962.58087516,0.00019939,2]
[350213167,1737696638525,-201.19,0.00019963,2]
[350213169,1737696638534,-501.97941636,0.00019973,2]
[350213171,1737696638544,-514.82642634,0.00019973,2]
[350213173,1737696638554,-500.75664647,0.00019973,2]
[350213175,1737696638563,-500.0,0.00019973,2]
[350213177,1737696638573,-501.69706151,0.00019973,2]
[350213179,1737696638582,-953.82,0.00019994,3]
[350213181,1737696638591,-500.0,0.00019994,3]
[350213183,1737696638601,-1425.27,0.00019994,3]
[350213185,1737696638610,-500.0,0.00019994,3]
[350213187,1737696638620,-500.0,0.00019994,3]
[350213189,1737696638629,-500.0,0.00019994,3]
[350213191,1737696638639,-500.0,0.00019994,3]
[350213193,1737696638648,-2140.23,0.00019994,3]
[350213195,1737696638657,-500.0,0.00019994,3]
[350213197,1737696638668,-956.22,0.00019994,3]
[350213199,1737696638677,-500.0,0.00019994,3]
[350213201,1737696638689,-562.0,0.00019994,3]
[350213203,1737696638698,-500.0,0.00019994,3]
[350213205,1737696638708,-1228.47,0.00019994,3]
[350213207,1737696638718,-500.0,0.00019994,3]
[350213209,1737696638727,-500.0,0.00019994,3]
[350213211,1737696638736,-500.0,0.00019994,3]
[350213213,1737696638745,-500.0,0.00019994,3]
[350213215,1737696638755,-500.0,0.00019994,3]
[350213217,1737696638765,-500.0,0.00019994,3]
[350213219,1737696638774,-500.0,0.00019994,3]
[350213221,1737696638783,-500.0,0.00019994,3]
[350213223,1737696638792,-600.5844107,0.00019994,3]
[350213225,1737696638802,-759.03,0.00019994,3]
[350213227,1737696638811,-500.0,0.00019994,3]
[350213229,1737696638820,-500.0,0.00019994,3]
[350213231,1737696638831,-500.0,0.00019994,3]
[350213233,1737696638840,-500.0,0.00019994,3]
[350213235,1737696638850,-1061.97,0.00019994,3]
[350213237,1737696638859,-1873.1,0.00019994,3]
[350213239,1737696638868,-500.0,0.00019994,3]
[350213241,1737696638877,-500.0,0.00019994,3]
[350213243,1737696638887,-500.0,0.00019994,3]
[350213245,1737696638896,-500.0,0.00019994,3]
[350213247,1737696638905,-500.0,0.00019994,3]